Cogmind - Beta 14 @@@ ROGUE MODE // 2024.09.13 @ 05:22:04 Player: Zaros426 Result: Destroyed by as-76031 with Assembled Blade Performance ------------- Evolutions (0) 0 Regions Visited (2) 400 Robots Destroyed (30) 150 Value Destroyed (483) 483 Prototype IDs (2) 40 Alien Tech Used (0) 0 Bonus (0) 0 TOTAL SCORE: 1073 Bonus ------- None Cogmind --------- Core Integrity 0/250 Matter 156/300 Energy 100/100 System Corruption 0% Temperature Hot (224) Movement Treading (240) Ox1 Location -10/Mines Parts ------- > --- POWER (1) -------- (None) > --- PROPULSION (2) --- Light Treads > --- UTILITY (2) ------ Large Storage Unit Targeting Computer > --- WEAPON (2) ------- Light Cannon Light Cannon > --- INVENTORY (15) --- Improved Heat Sink High-capacity Matter Pod (200) Visual Processing Unit Sensor Array Signal Interpreter Light Armor Plating Hacking Suite EM Pulse Gun Light Cannon Datajack Mining Laser Peak State ------------ > --- POWER ------------ Ion Engine > --- PROPULSION ------- Light Treads Light Treads > --- UTILITY ---------- Small Storage Unit Signal Interpreter > --- WEAPON ----------- Light Assault Rifle Light Assault Rifle > --- INVENTORY -------- Ion Engine Compact Wheel High-capacity Matter Pod Improved Terrain Scanner Seismic Detector Light Assault Rifle Light Assault Rifle Mining Laser [Rating: 8] Favorites ----------- Power Ion Engine Engine Ion Engine Propulsion Light Treads Treads Light Treads Wheel Compact Wheel Utility Targeting Computer Storage Small Storage Unit Processor Targeting Computer Protection Light Armor Plating Weapon Light Assault Rifle Energy Gun EM Pulse Gun Ballistic Gun Light Assault Rifle Ballistic Cannon Light Cannon Build | -11 -10 -10 ------- Run | Yrd Mat Min Slots Evolved . | . . . Power . | . . . Propulsion . | . . . Utility . | . . . Weapon . | . . . Parts Attached 32 | 6 23 3 Power 3 | 1 1 1 Engine 3 | 1 1 1 Core . | . . . Reactor . | . . . Propulsion 10 | 2 7 1 Treads 9 | 2 6 1 Leg . | . . . Wheel 1 | . 1 . Hover . | . . . Flight . | . . . Utility 6 | 1 5 . Device . | . . . Storage 3 | 1 2 . Processor 2 | . 2 . Hackware . | . . . Protection 1 | . 1 . Artifact . | . . . Weapon 13 | 2 10 1 Energy Gun 2 | . 2 . Energy Cannon . | . . . Ballistic Gun 8 | 2 6 . Ballistic Cannon 3 | . 2 1 Launcher . | . . . Special Weapon . | . . . Impact Weapon . | . . . Slashing Weapon . | . . . Piercing Weapon . | . . . Special Melee Weapon . | . . . Unidentified Prototypes . | . . . Parts Lost 9 | . 4 5 Power 3 | . 1 2 Propulsion 3 | . 1 2 Utility 1 | . 1 . Weapon 2 | . 1 1 Highest Loss Streak 5 | . 3 5 To Critical Strikes . | . . . Average Slot Usage (%) 94 | . 94 96 Engine 13 | . 13 14 Treads 26 | . 26 24 Storage 14 | . 14 14 Processor 9 | . 8 14 Protection 1 | . 1 . Energy Gun 1 | . 1 . Ballistic Gun 20 | . 21 . Ballistic Cannon 5 | . 4 28 Peak Build Rating 8 | 6 8 8 Average Rating 7 | 5 7 7 On Entrance 4 | . 6 8 Naked Turns . | . . . Heaviest Build 31 | 12 31 31 Greatest Support 40 | 40 40 40 Greatest Overweight (x) 5 | . 5 . Average Overweight (x) . | . . . Largest Inventory Capacity 15 | 8 15 15 Average Capacity 9 | 7 10 15 Most Carried 14 | 6 14 14 Average Carried 7 | 2 8 13 Final Capacity 15 | 8 15 15 Final Carried 14 | 5 14 11 Class Distribution -------------------- 100% | Mutant Dominant Class ---------------- Mutant | -10/Materials Mutant | -10/Mines Resources | -11 -10 -10 ----------- Run | Yrd Mat Min Matter Collected 909 | 348 561 . Remotely . | . . . Salvage Created 912 | 244 664 4 Parts 70 | 19 51 . Haulers Intercepted 2 | . 2 . Recyclers Shooed 2 | 2 . . Parts Field Recycled . | . . . Retrieved Matter . | . . . Parts Self-Destructed . | . . . Prevented . | . . . Kills | -11 -10 -10 ------- Run | Yrd Mat Min Combat Hostiles Destroyed 17 | . 14 3 Guns 14 | . 14 . Cannons 3 | . . 3 Classes Destroyed 9 | 3 5 1 Worker 2 | 1 1 . Tunneler 7 | 7 . . Hauler 2 | . 2 . Recycler 1 | 1 . . Operator 1 | . 1 . Watcher 3 | . 3 . Swarmer 6 | . 6 . Grunt 8 | . 8 . Assembled 3 | . . 3 Best Kill Streak 8 | 2 8 3 Combat Bots Only 6 | . 6 3 Max Kills in Single Turn 2 | 1 2 1 Gunslinging . | . . . Exploded . | . . . Melee . | . . . Uniques/NPCs Destroyed . | . . . Combat | -11 -10 -10 -------- Run | Yrd Mat Min Hostile Shots Fired 159 | . 105 54 Missed 40 | . 27 13 Damage Taken 1660 | . 796 864 Core 253 | . 139 114 Absorbed by Shields . | . . . Core Remaining (%) 100 | 100 . . Volleys Fired 157 | 44 102 11 Largest 2 | 2 2 2 Hottest 70 | 40 70 70 Shots Fired 304 | 88 194 22 Gun 278 | 88 190 . Cannon 26 | . 4 22 Launcher . | . . . Special . | . . . Kinetic 300 | 88 190 22 Thermal . | . . . Explosive . | . . . Electromagnetic 4 | . 4 . Robot Hit Streak 14 | 8 14 6 Robot Miss Streak 6 | 3 6 1 Penetration Max . | . . . Secondary Targets 1 | . 1 . Max Gunslinging Chain 1 | . 1 . Shots Hit Robots 187 | 52 121 14 Core Hits 67 | 17 45 5 Critical Kills 1 | . 1 . Critical Parts Destroyed . | . . . Critical Strikes 2 | . 2 . Destroy 1 | . 1 . Corrupt 1 | . 1 . Melee Attacks . | . . . Impact . | . . . Slashing . | . . . Piercing . | . . . Sneak Attacks . | . . . Combat Hostiles . | . . . Follow-up Attacks . | . . . Damage Inflicted 1716 | 419 1042 255 Guns 1441 | 419 1022 . Cannons 275 | . 20 255 Explosions . | . . . Melee . | . . . Ramming . | . . . Kinetic 1677 | 419 1003 255 Thermal . | . . . Explosive . | . . . Electromagnetic 39 | . 39 . Impact . | . . . Slashing . | . . . Piercing . | . . . Highest Corruption . | . . . Average Corruption . | . . . Corruption Purged . | . . . Corruption Blocked . | . . . Overload Shots . | . . . Overflow Damage 14 | . . 14 Projectiles 14 | . . 14 Explosions . | . . . Melee . | . . . Knockbacks 4 | . . 4 Impact . | . . . Kinetic 4 | . . 4 Secondary . | . . . Self-Inflicted Damage . | . . . Shots . | . . . Rammed . | . . . Targets Rammed . | . . . Kicked . | . . . Crushed . | . . . Highest Temperature 226 | . 85 226 Average Temperature 48 | . 18 120 Received Heat Transfer 494 | . 294 200 Siege Activations . | . . . Robots Corrupted . | . . . Combat Hostiles . | . . . Parts Fried 1 | . 1 . Impact Corruptions . | . . . Robots Melted . | . . . Combat Hostiles . | . . . Parts Melted . | . . . Heat Transferred . | . . . Parts Sabotaged . | . . . Parts Stolen . | . . . Parts Stripped . | . . . Power Chain Reactions . | . . . Alert | -11 -10 -10 ------- Run | Yrd Mat Min Peak Influence 310 | 45 310 54 Initial 54 | . 29 54 Average 130 | 19 163 48 Maximum Alert Level 1 | . 1 . Low Security (%) 79 | 100 73 100 Level 1 20 | . 26 . Level 2 . | . . . Level 3 . | . . . Level 4 . | . . . Level 5 . | . . . High Security . | . . . Max Security . | . . . Squads Dispatched 4 | . 4 . Investigation 3 | . 3 . Extermination . | . . . Reinforcement 1 | . 1 . Assault . | . . . Garrison . | . . . Intercept . | . . . Searches Triggered . | . . . Construction Impeded . | . . . Haulers Reinforced . | . . . Active Scanning Responses . | . . . Cargo Convoy Interrupts . | . . . Stealth | -11 -10 -10 --------- Run | Yrd Mat Min Distress Signals 1 | . 1 . Communications Jammed . | . . . Distress Signals . | . . . Times Spotted 43 | . 36 7 Peak Tracking Total 5 | . 5 5 Tactical Retreats . | . . . Traps | -11 -10 -10 ------- Run | Yrd Mat Min Traps Triggered 2 | . 2 . Indirectly . | . . . Trap Hack Attempts . | . . . Triggered . | . . . Disarmed . | . . . Reprogrammed . | . . . Reused . | . . . Traps Extracted . | . . . Installed . | . . . Triggered . | . . . Machines | -11 -10 -10 ---------- Run | Yrd Mat Min Machines Disabled . | . . . Max in Single Turn . | . . . Machines Repaired . | . . . Machines Dismantled . | . . . Machines Sabotaged . | . . . Overloaded Fab Kills . | . . . Hacking | -11 -10 -10 --------- Run | Yrd Mat Min Machines Accessed 9 | . 9 . Terminals 6 | . 6 . Fabricators . | . . . Repair Stations 1 | . 1 . Recycling Units 2 | . 2 . Scanalyzers . | . . . Garrison Access . | . . . Total Hacks 34 | . 34 . Successful 16 | . 16 . Failed 18 | . 18 . Catastrophic 3 | . 3 . Database Lockouts . | . . . Manual 22 | . 22 . Terminals 29 | . 29 . Fabricators . | . . . Repair Stations 3 | . 3 . Recycling Units 2 | . 2 . Scanalyzers . | . . . Garrison Access . | . . . Terminal Hacks 8 | . 8 . Robot Analysis 3 | . 3 . Prototype ID Bank 1 | . 1 . Locate Traps 2 | . 2 . Recall Investigation 1 | . 1 . Zone Layout 1 | . 1 . Fabricator Hacks . | . . . Repair Station Hacks . | . . . Recycling Unit Hacks . | . . . Scanalyzer . | . . . Garrison Access Hacks . | . . . Unauthorized Hacks 8 | . 8 . Terminals 6 | . 6 . Skim 6 | . 6 . Fabricators . | . . . Repair Stations . | . . . Recycling Units 2 | . 2 . Tunnel 2 | . 2 . Scanalyzers . | . . . Garrison Access . | . . . Data Cores Recovered . | . . . Used . | . . . Hacking Detections 7 | . 7 . Full Trace Events 2 | . 2 . Feedback Events . | . . . Feedback Blocked . | . . . Robot Schematics Acquired . | . . . Robots Built . | . . . Authchips . | . . . Time . | . . . Total Robot Build Rating . | . . . Part Schematics Acquired . | . . . Parts Built . | . . . Authchips . | . . . Time . | . . . Total Part Build Rating . | . . . Parts Repaired . | . . . Time . | . . . Parts Recycled . | . . . Recycled Matter . | . . . Retrieved Matter . | . . . Retrieved Components . | . . . Parts Scanalyzed . | . . . Part Schematics Acquired . | . . . Parts Damaged . | . . . Bothacking | -11 -10 -10 ------------ Run | Yrd Mat Min Used RIF Installer . | . . . Robots Hacked . | . . . Non-combat . | . . . Combat . | . . . Robot Hacks Applied . | . . . Relay Couplers Released . | . . . Fabnet Peak Effective % . | . . . Robots Rewired . | . . . Allies Hacked . | . . . Hacks Repelled . | . . . Allies | -11 -10 -10 -------- Run | Yrd Mat Min Total Allies . | . . . Largest Group . | . . . Highest-Rated Group . | . . . Highest-Rated Ally . | . . . Total Orders . | . . . Ally Attacks . | . . . Total Damage . | . . . Kills . | . . . Allies Corrupted . | . . . Allies Melted . | . . . Intel | -11 -10 -10 ------- Run | Yrd Mat Min Robot Analysis Total 3 | . 3 . Derelict Logs Recovered . | . . . Drone Launches . | . . . Drone Recoveries . | . . . Exploration | -11 -10 -10 ------------- Run | Yrd Mat Min Turns Passed 1934 | 376 1478 80 Spaces Moved 893 | 155 724 14 Core 2 | 1 1 . Treads 861 | 154 693 14 Legs . | . . . Wheels 30 | . 30 . Hover . | . . . Flight . | . . . Fastest Speed 50 | 50 115 160 Average Speed 158 | 159 158 160 Slowest Speed 300 | 160 300 160 Overloaded Moves . | . . . Propulsion Burnouts . | . . . Robots Hopped . | . . . Cave-ins Triggered . | . . . Exploration Rate (%) 37 | 9 95 9 Regions Visited 2 Branch Regions 1 Pre-discovered Areas 2 | . 2 . Known Exits Taken . | . . . Unknown Exits Taken 2 | 1 1 . Scrap Searched . | . . . Spaces Dug . | . . . Terrain Destroyed . | . . . Melee . | . . . Projectile . | . . . AOE . | . . . Terrain Rammed . | . . . Walls Destroyed . | . . . Machines Disabled . | . . . Actions | -11 -10 -10 --------- Run | Yrd Mat Min Total 1159 | 211 899 49 Wait 40 | . 19 21 Move 891 | 154 723 14 Hop . | . . . Pick Up 21 | 6 15 . Fast Attach 19 | 6 13 . Attach 5 | . 2 3 Detach 1 | . 1 . Swap 8 | . 8 . Drop 17 | 1 16 . Fire 157 | 44 102 11 Melee . | . . . Ram . | . . . Kick . | . . . Crush . | . . . Escape Stasis . | . . . Rewire . | . . . Trap . | . . . Miscellaneous . | . . . Route ------- -11/Scrapyard -10/Materials (discovered 4 exits: [*Mat x3] / [*Min]) -10/Mines History --------- Turn | Location | Event 19 | -11/Scrapyard | Discovered new exit (range 16) 377 | -11/Scrapyard | Entered Materials 378 | -10/Materials | Build established: Mutant 588 | -10/Materials | Discovered new exit (range 7) 856 | -10/Materials | Discovered new exit (range 16) 1159 | -10/Materials | Core integrity fell below 50% 1187 | -10/Materials | Lost 3 parts (1p1n1w) 1220 | -10/Materials | Discovered new exit (range 14) 1652 | -10/Materials | Discovered new exit (range 12) 1855 | -10/Materials | Entered Mines 1856 | -10/Mines | Assembled infested the area 1935 | -10/Mines | Core integrity fell below 20% 1935 | -10/Mines | Destroyed by as-76031 with Assembled Blade Last Messages --------------- 01774_ Acquired Visual Processing Unit. 01775_ U-05 Engineer builds a Door. 01834_ Triggered Blade Trap. 01834_ Massive razor-sharp blades shoot up from within the floor. 01834_ Lgt. Treads severed. 01836_ Acquired Lgt. Treads. LOCATION=UNKNOWN GOAL=ESCAPE 01856_ ALERT: Infestation in the mines, dispatching Demolisher response squad. 01899_ as-47621 knocked back. 01908_ as-47621 destroyed. 01917_ Destroyed Asb. Hover Unit. 01917_ as-47247 destroyed. 01918_ Lgt. Treads destroyed. 01927_ Lgt. Cannon destroyed. 01927_ Ion Engine destroyed. 01929_ Lgt. Treads destroyed. 01929_ as-44623 destroyed. 01932_ as-76031 knocked back. 01933_ Ion Engine destroyed. Map ----- +----------------------------------------------------+ | | | | | | | | | | | | | | | | | | | | | | | | | | | | | | | | | | | | | | | | | ?????????????????????????????????????????????????? | | ?????????????????????????????????????????????????? | | ???????????????????????????#######???????????????? | | ????????????????????######## ##??????????????? | | ?????????# ### % a % #??????????????? | | ?????????# a@a% #??????????????? | | ?????????????# a%###%% #??????????????? | | ?????????????# #?# #??????????????? | | ????????????# #?# #??????????????? | | ???????????# ?## #?????????????? | | ???????????# ??# #????????????? | | ??????????# ### ??# #????????????? | | ?????????? #??## ??## #???????????? | | ??????????? ####????# ???## #???????????? | | ??????????? ??????????# ????## #???????????? | | ????????????????????????# ?????##=!*##???????????? | | ????????????????????????? ???????#%##????????????? | | ?????????????????????????#????????|#?????????????? | | ?????????????????????????????????? #?????????????? | | ?????????????????????????????????? #?????????????? | | ???????????????????????????????????#?????????????? | | ?????????????????????????????????????????????????? | | ?????????????????????????????????????????????????? | | ?????????????????????????????????????????????????? | | ?????????????????????????????????????????????????? | | ?????????????????????????????????????????????????? | | ?????????????????????????????????????????????????? | | ?????????????????????????????????????????????????? | | ?????????????????????????????????????????????????? | | ?????????????????????????????????????????????????? | +----------------------------------------------------+ Best States ------------- Heat Dissipation 25 Energy Generation 10 Energy Capacity 250 Matter Stores 300 Matter Capacity 300 Sight Range 16 Terrain Scan Density 10 Armor Coverage 150 Evasion (%) 40 Targeting Accuracy 5 Recoil Reduction 2 Item Schematics ----------------- None Robot Schematics ------------------ None Fabricated ------------ Nothing Alien Tech Used ----------------- None Achievements -------------- None Challenges ------------ None Game ------ Seed CloakPrecisionRedistributor Manual? 0 Play Time 00:13:53 Cumulative 82.4 hours Start 2024.09.13 @ 05:09:26 End 2024.09.13 @ 05:22:04 Sessions 1 Manual Loads 0 Difficulty Rogue Special Mode None Game No. 44 Rogue 44 Adventurer 0 Explorer 0 Win Type - Total 0 Types 0/0/0/0/0/0/0/0/0 Lore% 44 Gallery% 60 Achievement% 51 Wizard Run 0 Options --------- Layout 0 ASCII 0 Keyboard 0 Movement Mouse Keybinds 0 Fullscreen 1 Font 24/Smallcaps Map View 183x50 Zoom Use 0% Tactical HUD 1 Map Filters NONE Filters NONE Steam 0 RUN: 0902b833-0ebb-42f5-9bc7-f62590bcc529